[Event "Titled Tuesday Blitz February 01 A 2022"]
[White "Bortnyk, Olexandr"]
[Black "Le, Tuan Minh"]
[WhiteFideId "14120828"]
[BlackFideId "12401153"]
[WhiteElo "2905"]
[BlackElo "3009"]
[Result "0-1"]
[Round "08"]
[TimeControl "180+1"]
[Date "2022.02.01"]
[WhiteClock "0:00:06"]
[BlackClock "0:00:46"]

1. e4 {[%clk 0:03:00]}  c5 {[%clk 0:03:00]} 2. Nf3 {[%clk 0:03:00]}  Nf6 {[%clk 0:02:59]} 3. e5 {[%clk 0:02:58]}  Nd5 {[%clk 0:03:00]} 4. Nc3 {[%clk 0:02:59]}  e6 {[%clk 0:03:00]} 5. Ne4 {[%clk 0:02:59]}  f5 {[%clk 0:03:00]} 6. Nc3 {[%clk 0:03:00]}  Nc6 {[%clk 0:03:01]} 7. d4 {[%clk 0:03:00]}  d6 {[%clk 0:02:46]} 8. Bg5 {[%clk 0:02:52]}  Nxc3 {[%clk 0:02:42]} 9. bxc3 {[%clk 0:02:51]}  Qa5 {[%clk 0:02:42]} 10. Bd2 {[%clk 0:02:48]}  dxe5 {[%clk 0:02:43]} 11. dxe5 {[%clk 0:02:48]}  Be7 {[%clk 0:02:42]} 12. a4 {[%clk 0:02:42]}  Qc7 {[%clk 0:02:33]} 13. Bf4 {[%clk 0:02:37]}  O-O {[%clk 0:02:31]} 14. Be2 {[%clk 0:02:28]}  Bd7 {[%clk 0:02:27]} 15. O-O {[%clk 0:02:26]}  Rad8 {[%clk 0:02:27]} 16. Qb1 {[%clk 0:02:25]}  Na5 {[%clk 0:02:24]} 17. Re1 {[%clk 0:02:22]}  h6 {[%clk 0:02:22]} 18. h3 {[%clk 0:02:18]}  Bc6 {[%clk 0:02:20]} 19. Bh2 {[%clk 0:01:52]}  b6 {[%clk 0:02:16]} 20. Qc1 {[%clk 0:01:47]}  Bd5 {[%clk 0:02:08]} 21. h4 {[%clk 0:01:43]}  Qc6 {[%clk 0:02:03]} 22. Qf4 {[%clk 0:01:38]}  Qe8 {[%clk 0:02:00]} 23. Bg3 {[%clk 0:01:34]}  Kh8 {[%clk 0:01:48]} 24. Rad1 {[%clk 0:01:30]}  Rg8 {[%clk 0:01:39]} 25. c4 {[%clk 0:01:28]}  Bc6 {[%clk 0:01:36]} 26. Rd6 {[%clk 0:01:27]}  Qf7 {[%clk 0:01:31]} 27. h5 {[%clk 0:01:19]}  Bxf3 {[%clk 0:01:16]} 28. Bxf3 {[%clk 0:01:15]}  Bxd6 {[%clk 0:01:16]} 29. exd6 {[%clk 0:01:16]}  Rge8 {[%clk 0:01:17]} 30. Qh4 {[%clk 0:00:51]}  Qf6 {[%clk 0:00:57]} 31. Qh2 {[%clk 0:00:50]}  e5 {[%clk 0:00:52]} 32. Bxe5 {[%clk 0:00:45]}  Nxc4 {[%clk 0:00:48]} 33. d7 {[%clk 0:00:06]}  Rxe5 {[%clk 0:00:47]} 34. Rd1 {[%clk 0:00:06]}  Rxd7 {[%clk 0:00:47]} 35. Rf1 {[%clk 0:00:06]}  Nd2 {[%clk 0:00:46]} 0-1


[Site "https://www.chess.com"]

[Event "Titled Tuesday Blitz February 01 A 2022"]
[White "Demchenko, Anton"]
[Black "Narayanan.S.L"]
[WhiteFideId "4160258"]
[BlackFideId "5058422"]
[WhiteElo "2903"]
[BlackElo "2834"]
[Result "0-1"]
[Round "08"]
[TimeControl "180+1"]
[Date "2022.02.01"]
[WhiteClock "0:00:04"]
[BlackClock "0:00:09"]

1. e4 {[%clk 0:03:00]}  c5 {[%clk 0:02:59]} 2. Nf3 {[%clk 0:03:01]}  d6 {[%clk 0:02:59]} 3. d4 {[%clk 0:03:01]}  cxd4 {[%clk 0:02:59]} 4. Qxd4 {[%clk 0:03:02]}  a6 {[%clk 0:02:50]} 5. Be2 {[%clk 0:03:00]}  Nc6 {[%clk 0:02:50]} 6. Qe3 {[%clk 0:03:01]}  Bg4 {[%clk 0:02:48]} 7. Nbd2 {[%clk 0:03:00]}  e6 {[%clk 0:02:48]} 8. h3 {[%clk 0:02:58]}  Bh5 {[%clk 0:02:48]} 9. O-O {[%clk 0:02:52]}  Nf6 {[%clk 0:02:47]} 10. Rd1 {[%clk 0:02:39]}  Qc7 {[%clk 0:02:26]} 11. a3 {[%clk 0:01:45]}  Be7 {[%clk 0:02:24]} 12. Nf1 {[%clk 0:01:24]}  O-O {[%clk 0:02:11]} 13. Ng3 {[%clk 0:01:24]}  Bg6 {[%clk 0:02:12]} 14. Nh4 {[%clk 0:01:22]}  Rfd8 {[%clk 0:02:10]} 15. Nxg6 {[%clk 0:01:21]}  hxg6 {[%clk 0:02:10]} 16. b3 {[%clk 0:01:11]}  d5 {[%clk 0:02:02]} 17. Bb2 {[%clk 0:01:07]}  d4 {[%clk 0:02:02]} 18. Qd2 {[%clk 0:01:03]}  e5 {[%clk 0:02:00]} 19. Bd3 {[%clk 0:00:57]}  Rac8 {[%clk 0:01:53]} 20. Qe2 {[%clk 0:00:55]}  Bd6 {[%clk 0:01:53]} 21. h4 {[%clk 0:00:52]}  Qe7 {[%clk 0:01:43]} 22. Bc1 {[%clk 0:00:48]}  Nb8 {[%clk 0:01:30]} 23. h5 {[%clk 0:00:46]}  gxh5 {[%clk 0:01:28]} 24. Nxh5 {[%clk 0:00:46]}  Nbd7 {[%clk 0:01:15]} 25. Bg5 {[%clk 0:00:43]}  g6 {[%clk 0:01:08]} 26. Nxf6+ {[%clk 0:00:39]}  Nxf6 {[%clk 0:01:09]} 27. Qf3 {[%clk 0:00:40]}  Kg7 {[%clk 0:01:09]} 28. g4 {[%clk 0:00:23]}  Rh8 {[%clk 0:01:08]} 29. Kg2 {[%clk 0:00:23]}  Qe6 {[%clk 0:01:07]} 30. Kg3 {[%clk 0:00:11]}  Be7 {[%clk 0:00:44]} 31. Bd2 {[%clk 0:00:10]}  Nh7 {[%clk 0:00:41]} 32. Rh1 {[%clk 0:00:06]}  Ng5 {[%clk 0:00:38]} 33. Qe2 {[%clk 0:00:06]}  Qf6 {[%clk 0:00:37]} 34. Kg2 {[%clk 0:00:04]}  Ne6 {[%clk 0:00:36]} 35. b4 {[%clk 0:00:04]}  Nf4+ {[%clk 0:00:26]} 36. Bxf4 {[%clk 0:00:04]}  Qxf4 {[%clk 0:00:27]} 37. Qf3 {[%clk 0:00:05]}  Qg5 {[%clk 0:00:27]} 38. Qg3 {[%clk 0:00:05]}  Qf6 {[%clk 0:00:23]} 39. Qf3 {[%clk 0:00:05]}  Qe6 {[%clk 0:00:23]} 40. Rxh8 {[%clk 0:00:04]}  Rxh8 {[%clk 0:00:22]} 41. Rh1 {[%clk 0:00:03]}  Rxh1 {[%clk 0:00:22]} 42. Kxh1 {[%clk 0:00:04]}  Bg5 {[%clk 0:00:23]} 43. Kg2 {[%clk 0:00:04]}  b5 {[%clk 0:00:22]} 44. Qe2 {[%clk 0:00:03]}  Bf4 {[%clk 0:00:22]} 45. f3 {[%clk 0:00:03]}  Qf6 {[%clk 0:00:21]} 46. Qe1 {[%clk 0:00:02]}  Qe7 {[%clk 0:00:18]} 47. a4 {[%clk 0:00:02]}  bxa4 {[%clk 0:00:18]} 48. Bxa6 {[%clk 0:00:03]}  a3 {[%clk 0:00:19]} 49. Bc4 {[%clk 0:00:03]}  Qc7 {[%clk 0:00:17]} 50. Bb3 {[%clk 0:00:03]}  Qd8 {[%clk 0:00:15]} 51. b5 {[%clk 0:00:03]}  Qh8 {[%clk 0:00:15]} 52. b6 {[%clk 0:00:03]}  Qh2+ {[%clk 0:00:15]} 53. Kf1 {[%clk 0:00:04]}  Qh1+ {[%clk 0:00:15]} 54. Ke2 {[%clk 0:00:04]}  Qg2+ {[%clk 0:00:16]} 55. Kd3 {[%clk 0:00:05]}  Qxf3+ {[%clk 0:00:16]} 56. Kc4 {[%clk 0:00:05]}  Qxg4 {[%clk 0:00:14]} 57. Qb4 {[%clk 0:00:04]}  Qc8+ {[%clk 0:00:13]} 58. Kb5 {[%clk 0:00:05]}  g5 {[%clk 0:00:11]} 59. Qc4 {[%clk 0:00:05]}  Qd7+ {[%clk 0:00:10]} 60. Qc6 {[%clk 0:00:05]}  Qd8 {[%clk 0:00:08]} 61. Qc7 {[%clk 0:00:05]}  Qe8+ {[%clk 0:00:08]} 62. Ka6 {[%clk 0:00:04]}  a2 {[%clk 0:00:07]} 63. Bxa2 {[%clk 0:00:04]}  Qa4+ {[%clk 0:00:08]} 64. Kb7 {[%clk 0:00:04]}  Qxa2 {[%clk 0:00:09]} 65. Kc8 {[%clk 0:00:05]}  Qe6+ {[%clk 0:00:08]} 66. Kb8 {[%clk 0:00:04]}  g4 {[%clk 0:00:08]} 67. b7 {[%clk 0:00:05]}  g3 {[%clk 0:00:09]} 68. Ka8 {[%clk 0:00:05]}  g2 {[%clk 0:00:08]} 69. b8=Q {[%clk 0:00:06]}  Qa6+ {[%clk 0:00:08]} 70. Qba7 {[%clk 0:00:05]}  Qxa7+ {[%clk 0:00:08]} 71. Kxa7 {[%clk 0:00:06]}  g1=Q {[%clk 0:00:09]} 72. Kb7 {[%clk 0:00:04]}  Qg6 {[%clk 0:00:09]} 0-1


[Site "https://www.chess.com"]

[Event "Titled Tuesday Blitz February 01 A 2022"]
[White "Fayzullaev, Akmal"]
[Black "Kosakowski, Jakub"]
[WhiteFideId "14200554"]
[BlackFideId "1185080"]
[WhiteElo "2228"]
[BlackElo "2476"]
[Result "1-0"]
[Round "08"]
[TimeControl "180+1"]
[Date "2022.02.01"]
[WhiteClock "0:02:06"]
[BlackClock "0:00:52"]

1. e4 {[%clk 0:03:00]}  c5 {[%clk 0:02:33]} 2. Nf3 {[%clk 0:03:00]}  e6 {[%clk 0:02:23]} 3. d4 {[%clk 0:03:00]}  cxd4 {[%clk 0:02:23]} 4. Nxd4 {[%clk 0:03:01]}  Nc6 {[%clk 0:02:24]} 5. Nc3 {[%clk 0:03:00]}  Nge7 {[%clk 0:02:23]} 6. Ndb5 {[%clk 0:02:54]}  Ng6 {[%clk 0:02:22]} 7. Nd6+ {[%clk 0:02:53]}  Bxd6 {[%clk 0:02:22]} 8. Qxd6 {[%clk 0:02:52]}  a6 {[%clk 0:02:22]} 9. Be3 {[%clk 0:02:50]}  Qe7 {[%clk 0:02:20]} 10. Bc5 {[%clk 0:02:47]}  Qxd6 {[%clk 0:02:19]} 11. Bxd6 {[%clk 0:02:48]}  b5 {[%clk 0:02:16]} 12. a4 {[%clk 0:02:42]}  b4 {[%clk 0:02:15]} 13. Na2 {[%clk 0:02:41]}  a5 {[%clk 0:02:15]} 14. c3 {[%clk 0:02:40]}  bxc3 {[%clk 0:02:00]} 15. Nxc3 {[%clk 0:02:40]}  f6 {[%clk 0:01:48]} 16. Nb5 {[%clk 0:02:30]}  Kf7 {[%clk 0:01:47]} 17. Bc4 {[%clk 0:02:29]}  Nge5 {[%clk 0:01:46]} 18. Be2 {[%clk 0:02:29]}  Nb4 {[%clk 0:01:42]} 19. O-O {[%clk 0:02:27]}  Bb7 {[%clk 0:01:43]} 20. Bxe5 {[%clk 0:02:25]}  fxe5 {[%clk 0:01:36]} 21. Nd6+ {[%clk 0:02:25]}  Ke7 {[%clk 0:01:36]} 22. Nxb7 {[%clk 0:02:26]}  Nc2 {[%clk 0:01:30]} 23. Rac1 {[%clk 0:02:20]}  Nd4 {[%clk 0:01:30]} 24. Bb5 {[%clk 0:02:20]}  Rhb8 {[%clk 0:01:21]} 25. Rc7 {[%clk 0:02:20]}  Nxb5 {[%clk 0:01:21]} 26. axb5 {[%clk 0:02:20]}  Ra7 {[%clk 0:01:22]} 27. Rd1 {[%clk 0:02:14]}  Rd8 {[%clk 0:00:52]} 28. b6 {[%clk 0:02:06]} 1-0


[Site "https://www.chess.com"]

[Event "Titled Tuesday Blitz February 01 A 2022"]
[White "Gaehwiler, Gabriel"]
[Black "Dobrov, Vladimir"]
[WhiteFideId "1314530"]
[BlackFideId "4136594"]
[WhiteElo "2709"]
[BlackElo "2803"]
[Result "0-1"]
[Round "08"]
[TimeControl "180+1"]
[Date "2022.02.01"]
[WhiteClock "0:00:02"]
[BlackClock "0:00:14"]

1. d4 {[%clk 0:03:00]}  Nf6 {[%clk 0:02:59]} 2. c4 {[%clk 0:03:01]}  e6 {[%clk 0:03:00]} 3. g3 {[%clk 0:03:00]}  d5 {[%clk 0:02:57]} 4. Bg2 {[%clk 0:03:00]}  Bb4+ {[%clk 0:02:55]} 5. Bd2 {[%clk 0:03:00]}  Be7 {[%clk 0:02:54]} 6. Nf3 {[%clk 0:03:00]}  O-O {[%clk 0:02:54]} 7. Qc2 {[%clk 0:02:59]}  Nbd7 {[%clk 0:02:52]} 8. O-O {[%clk 0:02:58]}  c6 {[%clk 0:02:51]} 9. Rc1 {[%clk 0:02:58]}  b6 {[%clk 0:02:50]} 10. Qa4 {[%clk 0:02:47]}  Bb7 {[%clk 0:02:48]} 11. cxd5 {[%clk 0:02:46]}  exd5 {[%clk 0:02:38]} 12. Bb4 {[%clk 0:02:25]}  c5 {[%clk 0:02:32]} 13. dxc5 {[%clk 0:02:23]}  bxc5 {[%clk 0:02:24]} 14. Ba5 {[%clk 0:02:23]}  Nb6 {[%clk 0:02:24]} 15. Qd1 {[%clk 0:02:20]}  Qd6 {[%clk 0:02:14]} 16. Na3 {[%clk 0:02:13]}  Rac8 {[%clk 0:01:55]} 17. Ne1 {[%clk 0:01:38]}  Rfe8 {[%clk 0:01:52]} 18. Rc2 {[%clk 0:01:29]}  Bf8 {[%clk 0:01:49]} 19. Rd2 {[%clk 0:01:25]}  Ne4 {[%clk 0:01:38]} 20. Rc2 {[%clk 0:01:17]}  Qf6 {[%clk 0:01:30]} 21. e3 {[%clk 0:01:11]}  g6 {[%clk 0:01:09]} 22. Rac1 {[%clk 0:01:09]}  h5 {[%clk 0:01:07]} 23. Nb5 {[%clk 0:01:05]}  Nc4 {[%clk 0:00:58]} 24. Bc3 {[%clk 0:00:58]}  Qb6 {[%clk 0:00:55]} 25. Bxe4 {[%clk 0:00:47]}  Rxe4 {[%clk 0:00:52]} 26. Na3 {[%clk 0:00:45]}  Nxa3 {[%clk 0:00:49]} 27. bxa3 {[%clk 0:00:45]}  d4 {[%clk 0:00:39]} 28. exd4 {[%clk 0:00:36]}  cxd4 {[%clk 0:00:40]} 29. Bb4 {[%clk 0:00:30]}  Rce8 {[%clk 0:00:34]} 30. Nd3 {[%clk 0:00:28]}  Bh6 {[%clk 0:00:32]} 31. Bd2 {[%clk 0:00:25]}  Bxd2 {[%clk 0:00:20]} 32. Qxd2 {[%clk 0:00:26]}  R4e7 {[%clk 0:00:20]} 33. Nc5 {[%clk 0:00:21]}  Ba8 {[%clk 0:00:19]} 34. f3 {[%clk 0:00:11]}  Bxf3 {[%clk 0:00:14]} 35. Qxd4 {[%clk 0:00:12]}  Ba8 {[%clk 0:00:14]} 36. Nb3 {[%clk 0:00:02]}  Qb7 {[%clk 0:00:14]} 0-1


[Site "https://www.chess.com"]

[Event "Titled Tuesday Blitz February 01 A 2022"]
[White "Garcia Martin, Marta"]
[Black "Atakhan, Abtin"]
[WhiteFideId "32084030"]
[BlackFideId "22502203"]
[WhiteElo "2102"]
[BlackElo "2119"]
[Result "0-1"]
[Round "08"]
[TimeControl "180+1"]
[Date "2022.02.01"]
[WhiteClock "0:00:03"]
[BlackClock "0:00:02"]

1. Nf3 {[%clk 0:03:00]}  d5 {[%clk 0:02:58]} 2. e3 {[%clk 0:03:00]}  Nf6 {[%clk 0:02:58]} 3. c4 {[%clk 0:03:00]}  c6 {[%clk 0:02:58]} 4. Nc3 {[%clk 0:03:00]}  e6 {[%clk 0:02:58]} 5. Qc2 {[%clk 0:02:59]}  Bd6 {[%clk 0:02:56]} 6. b3 {[%clk 0:02:59]}  e5 {[%clk 0:02:36]} 7. cxd5 {[%clk 0:02:54]}  cxd5 {[%clk 0:02:37]} 8. Nb5 {[%clk 0:02:54]}  Nc6 {[%clk 0:02:37]} 9. Nxd6+ {[%clk 0:02:52]}  Qxd6 {[%clk 0:02:38]} 10. Bb2 {[%clk 0:02:51]}  O-O {[%clk 0:02:36]} 11. d4 {[%clk 0:02:48]}  Nb4 {[%clk 0:02:16]} 12. Qd1 {[%clk 0:02:12]}  e4 {[%clk 0:02:14]} 13. Nd2 {[%clk 0:01:59]}  Bg4 {[%clk 0:02:10]} 14. f3 {[%clk 0:01:21]}  exf3 {[%clk 0:02:09]} 15. gxf3 {[%clk 0:01:22]}  Bf5 {[%clk 0:01:22]} 16. Kf2 {[%clk 0:01:17]}  Nc2 {[%clk 0:01:15]} 17. Rc1 {[%clk 0:01:15]}  Rac8 {[%clk 0:01:15]} 18. Be2 {[%clk 0:00:46]}  Qe7 {[%clk 0:00:56]} 19. Nf1 {[%clk 0:00:45]}  Rfe8 {[%clk 0:00:51]} 20. Qd2 {[%clk 0:00:38]}  Rc6 {[%clk 0:00:31]} 21. Bb5 {[%clk 0:00:35]}  Nb4 {[%clk 0:00:27]} 22. Bxc6 {[%clk 0:00:24]}  Nd3+ {[%clk 0:00:26]} 23. Qxd3 {[%clk 0:00:17]}  Bxd3 {[%clk 0:00:26]} 24. Bxe8 {[%clk 0:00:17]}  Nxe8 {[%clk 0:00:19]} 25. Ng3 {[%clk 0:00:16]}  g6 {[%clk 0:00:17]} 26. h4 {[%clk 0:00:16]}  h5 {[%clk 0:00:17]} 27. Rc5 {[%clk 0:00:14]}  Nf6 {[%clk 0:00:13]} 28. Ba3 {[%clk 0:00:12]}  Qe6 {[%clk 0:00:13]} 29. Rhc1 {[%clk 0:00:09]}  Qa6 {[%clk 0:00:08]} 30. Rc8+ {[%clk 0:00:07]}  Kh7 {[%clk 0:00:09]} 31. Be7 {[%clk 0:00:03]}  Qxa2+ {[%clk 0:00:08]} 32. Kg1 {[%clk 0:00:04]}  Nd7 {[%clk 0:00:03]} 33. R1c7 {[%clk 0:00:04]}  Bb5 {[%clk 0:00:02]} 34. Rd8 {[%clk 0:00:03]}  Qd2 {[%clk 0:00:02]} 35. Rcxd7 {[%clk 0:00:02]}  Bxd7 {[%clk 0:00:03]} 36. Rxd7 {[%clk 0:00:03]}  Qxe3+ {[%clk 0:00:03]} 37. Kg2 {[%clk 0:00:03]}  Qd2+ {[%clk 0:00:04]} 38. Kh3 {[%clk 0:00:03]}  Qxd4 {[%clk 0:00:03]} 39. Bg5 {[%clk 0:00:02]}  Kg8 {[%clk 0:00:02]} 40. Rd8+ {[%clk 0:00:02]}  Kg7 {[%clk 0:00:02]} 41. Kg2 {[%clk 0:00:01]}  Qb2+ {[%clk 0:00:02]} 42. Kh3 {[%clk 0:00:01]}  Qxb3 {[%clk 0:00:03]} 43. Bf4 {[%clk 0:00:01]}  Qxf3 {[%clk 0:00:03]} 44. Be5+ {[%clk 0:00:01]}  f6 {[%clk 0:00:03]} 45. Rd7+ {[%clk 0:00:01]}  Kf8 {[%clk 0:00:03]} 46. Bd6+ {[%clk 0:00:01]}  Ke8 {[%clk 0:00:04]} 47. Re7+ {[%clk 0:00:02]}  Kd8 {[%clk 0:00:05]} 48. Rg7 {[%clk 0:00:03]}  Qg4+ {[%clk 0:00:04]} 49. Kg2 {[%clk 0:00:03]}  Qe6 {[%clk 0:00:02]} 50. Bf4 {[%clk 0:00:02]}  d4 {[%clk 0:00:03]} 51. Kf2 {[%clk 0:00:02]}  d3 {[%clk 0:00:03]} 52. Kf3 {[%clk 0:00:02]}  Qd5+ {[%clk 0:00:03]} 53. Ke3 {[%clk 0:00:02]}  d2 {[%clk 0:00:03]} 54. Ne4 {[%clk 0:00:02]}  d1=Q {[%clk 0:00:03]} 55. Nxf6 {[%clk 0:00:02]}  Q5d3+ {[%clk 0:00:02]} 56. Kf2 {[%clk 0:00:03]}  Q3f3# {[%clk 0:00:02]} 0-1


[Site "https://www.chess.com"]

[Event "Titled Tuesday Blitz February 01 A 2022"]
[White "Hansen, Eric"]
[Black "Bluebaum, Matthias"]
[WhiteFideId "2606771"]
[BlackFideId "24651516"]
[WhiteElo "2970"]
[BlackElo "2864"]
[Result "1-0"]
[Round "08"]
[TimeControl "180+1"]
[Date "2022.02.01"]
[WhiteClock "0:00:23"]
[BlackClock "0:00:04"]

1. Nf3 {[%clk 0:03:00]}  d5 {[%clk 0:02:59]} 2. g3 {[%clk 0:03:01]}  Bg4 {[%clk 0:03:00]} 3. Bg2 {[%clk 0:03:01]}  e6 {[%clk 0:03:00]} 4. O-O {[%clk 0:03:01]}  Nf6 {[%clk 0:03:01]} 5. c4 {[%clk 0:03:02]}  c6 {[%clk 0:03:01]} 6. Qb3 {[%clk 0:03:02]}  Qc8 {[%clk 0:03:00]} 7. Nc3 {[%clk 0:02:58]}  Be7 {[%clk 0:02:59]} 8. h3 {[%clk 0:02:56]}  Bh5 {[%clk 0:02:59]} 9. d4 {[%clk 0:02:50]}  O-O {[%clk 0:02:57]} 10. Bf4 {[%clk 0:02:50]}  Nbd7 {[%clk 0:02:53]} 11. Rac1 {[%clk 0:02:44]}  Nb6 {[%clk 0:02:23]} 12. cxd5 {[%clk 0:02:35]}  exd5 {[%clk 0:02:21]} 13. Ne5 {[%clk 0:02:36]}  Nfd7 {[%clk 0:01:59]} 14. Nxd5 {[%clk 0:02:23]}  Nxd5 {[%clk 0:01:59]} 15. Bxd5 {[%clk 0:02:24]}  Nxe5 {[%clk 0:01:59]} 16. Bxe5 {[%clk 0:02:11]}  Qxh3 {[%clk 0:01:58]} 17. Bg2 {[%clk 0:02:10]}  Qd7 {[%clk 0:01:58]} 18. e4 {[%clk 0:02:07]}  Kh8 {[%clk 0:01:49]} 19. d5 {[%clk 0:02:06]}  cxd5 {[%clk 0:01:49]} 20. Rc7 {[%clk 0:02:02]}  Qd8 {[%clk 0:00:27]} 21. Qxd5 {[%clk 0:01:54]}  Qxd5 {[%clk 0:00:24]} 22. exd5 {[%clk 0:01:54]}  Bf6 {[%clk 0:00:25]} 23. f4 {[%clk 0:01:25]}  Rab8 {[%clk 0:00:20]} 24. d6 {[%clk 0:01:19]}  Bg4 {[%clk 0:00:20]} 25. Rxb7 {[%clk 0:01:03]}  Rxb7 {[%clk 0:00:20]} 26. Bxb7 {[%clk 0:01:04]}  Rb8 {[%clk 0:00:20]} 27. Bd5 {[%clk 0:01:04]}  Rb5 {[%clk 0:00:13]} 28. Bxf7 {[%clk 0:00:35]}  h6 {[%clk 0:00:13]} 29. Bc4 {[%clk 0:00:24]}  Rc5 {[%clk 0:00:13]} 30. b3 {[%clk 0:00:25]}  Bxe5 {[%clk 0:00:06]} 31. fxe5 {[%clk 0:00:26]}  Rxe5 {[%clk 0:00:06]} 32. Rf8+ {[%clk 0:00:26]}  Kh7 {[%clk 0:00:07]} 33. Bd3+ {[%clk 0:00:27]}  g6 {[%clk 0:00:07]} 34. Rf7+ {[%clk 0:00:27]}  Kg8 {[%clk 0:00:07]} 35. Bc4 {[%clk 0:00:22]}  Kh8 {[%clk 0:00:04]} 36. d7 {[%clk 0:00:21]}  Re1+ {[%clk 0:00:02]} 37. Kf2 {[%clk 0:00:21]}  Rd1 {[%clk 0:00:03]} 38. Rf8+ {[%clk 0:00:21]}  Kg7 {[%clk 0:00:04]} 39. d8=Q {[%clk 0:00:22]}  Rxd8 {[%clk 0:00:04]} 40. Rxd8 {[%clk 0:00:23]} 1-0


[Site "https://www.chess.com"]

[Event "Titled Tuesday Blitz February 01 A 2022"]
[White "Indjic, Aleksandar"]
[Black "Mladenovic, Stefan"]
[WhiteFideId "911925"]
[BlackFideId "942227"]
[WhiteElo "2858"]
[BlackElo "2619"]
[Result "1-0"]
[Round "08"]
[TimeControl "180+1"]
[Date "2022.02.01"]
[WhiteClock "0:01:25"]
[BlackClock "0:00:01"]

1. d4 {[%clk 0:03:00]}  Nf6 {[%clk 0:03:00]} 2. Nf3 {[%clk 0:02:58]}  e6 {[%clk 0:03:00]} 3. Bg5 {[%clk 0:02:58]}  Be7 {[%clk 0:02:56]} 4. c4 {[%clk 0:02:54]}  b6 {[%clk 0:02:56]} 5. Nc3 {[%clk 0:02:50]}  Bb7 {[%clk 0:02:57]} 6. Qc2 {[%clk 0:02:50]}  d6 {[%clk 0:02:49]} 7. e4 {[%clk 0:02:49]}  Nbd7 {[%clk 0:02:49]} 8. O-O-O {[%clk 0:02:46]}  h6 {[%clk 0:02:46]} 9. Bf4 {[%clk 0:02:43]}  g5 {[%clk 0:02:43]} 10. Bd2 {[%clk 0:02:39]}  e5 {[%clk 0:02:26]} 11. d5 {[%clk 0:02:37]}  a5 {[%clk 0:02:23]} 12. h3 {[%clk 0:02:36]}  Nc5 {[%clk 0:02:23]} 13. Be3 {[%clk 0:02:36]}  Ba6 {[%clk 0:02:21]} 14. Nd2 {[%clk 0:02:34]}  Qd7 {[%clk 0:02:17]} 15. Be2 {[%clk 0:02:33]}  Rb8 {[%clk 0:02:11]} 16. Kb1 {[%clk 0:02:32]}  Bd8 {[%clk 0:01:29]} 17. Nf1 {[%clk 0:02:31]}  c6 {[%clk 0:01:15]} 18. Ng3 {[%clk 0:02:30]}  cxd5 {[%clk 0:01:13]} 19. exd5 {[%clk 0:02:25]}  Rc8 {[%clk 0:01:01]} 20. Nf5 {[%clk 0:02:23]}  Be7 {[%clk 0:00:52]} 21. g4 {[%clk 0:02:22]}  b5 {[%clk 0:00:37]} 22. cxb5 {[%clk 0:02:21]}  Bb7 {[%clk 0:00:37]} 23. Bc4 {[%clk 0:02:10]}  Bd8 {[%clk 0:00:18]} 24. f3 {[%clk 0:01:54]}  Be7 {[%clk 0:00:18]} 25. h4 {[%clk 0:01:54]}  Rg8 {[%clk 0:00:18]} 26. hxg5 {[%clk 0:01:53]}  hxg5 {[%clk 0:00:19]} 27. Rh6 {[%clk 0:01:52]}  e4 {[%clk 0:00:19]} 28. Bd4 {[%clk 0:01:46]}  Rg6 {[%clk 0:00:15]} 29. Rh8+ {[%clk 0:01:43]}  Ng8 {[%clk 0:00:15]} 30. fxe4 {[%clk 0:01:40]}  Kd8 {[%clk 0:00:11]} 31. b6 {[%clk 0:01:39]}  Rb8 {[%clk 0:00:06]} 32. Bb5 {[%clk 0:01:38]}  Qc8 {[%clk 0:00:05]} 33. e5 {[%clk 0:01:31]}  Ba6 {[%clk 0:00:02]} 34. exd6 {[%clk 0:01:30]}  Bf8 {[%clk 0:00:01]} 35. Bc6 {[%clk 0:01:26]}  Rxb6 {[%clk 0:00:01]} 36. Bxc5 {[%clk 0:01:25]} 1-0


[Site "https://www.chess.com"]

[Event "Titled Tuesday Blitz February 01 A 2022"]
[White "Kamsky, Gata"]
[Black "Pranav, V"]
[WhiteFideId "2000024"]
[BlackFideId "25060783"]
[WhiteElo "2797"]
[BlackElo "2880"]
[Result "0-1"]
[Round "08"]
[TimeControl "180+1"]
[Date "2022.02.01"]
[WhiteClock "0:00:01"]
[BlackClock "0:00:42"]

1. e4 {[%clk 0:02:57]}  e5 {[%clk 0:02:59]} 2. Nf3 {[%clk 0:02:52]}  Nf6 {[%clk 0:02:59]} 3. Nxe5 {[%clk 0:02:49]}  Nc6 {[%clk 0:03:00]} 4. Nxc6 {[%clk 0:02:48]}  dxc6 {[%clk 0:03:01]} 5. d3 {[%clk 0:02:45]}  Bc5 {[%clk 0:03:00]} 6. Be2 {[%clk 0:02:44]}  h5 {[%clk 0:02:59]} 7. h3 {[%clk 0:02:38]}  Qd4 {[%clk 0:02:58]} 8. O-O {[%clk 0:02:25]}  Qe5 {[%clk 0:02:00]} 9. Nd2 {[%clk 0:02:13]}  Bxh3 {[%clk 0:01:46]} 10. Nf3 {[%clk 0:02:09]}  Qg3 {[%clk 0:01:44]} 11. Ne1 {[%clk 0:01:54]}  Ng4 {[%clk 0:01:23]} 12. Bxg4 {[%clk 0:01:48]}  hxg4 {[%clk 0:01:24]} 13. d4 {[%clk 0:01:41]}  Qh4 {[%clk 0:01:24]} 14. f4 {[%clk 0:00:53]}  g3 {[%clk 0:01:02]} 15. Rf3 {[%clk 0:00:02]}  Bg4 {[%clk 0:00:45]} 16. Kf1 {[%clk 0:00:01]}  Qh1+ {[%clk 0:00:41]} 17. Ke2 {[%clk 0:00:01]}  Rh2 {[%clk 0:00:42]} 0-1


[Site "https://www.chess.com"]